Cogmind - Beta 16 --- EXPLORER MODE // 2025.12.29 @ 11:50:20 Player: K.K.Y. Result: Destroyed by 2U-KK9(R) with Subdweller Laser Performance ------------- Evolutions (0) 0 Regions Visited (3) 600 Robots Destroyed (38) 190 Value Destroyed (865) 865 Prototype IDs (12) 240 Alien Tech Used (0) 0 Bonus (-35) -35 TOTAL SCORE: 1860 Bonus ------- Follower Combat Kills 56 Friendly Fire -91 Cogmind --------- Core Integrity 0/250 Matter 300/300 Energy 310/310 System Corruption 1% Temperature Cool (6) Movement Core (1550) Ox30 Location -10/Subcaves Parts ------- > --- POWER (1) -------- Fission Core > --- PROPULSION (2) --- (None) > --- UTILITY (3) ------ Huge Storage Unit > --- WEAPON (2) ------- Small Laser > --- INVENTORY (25) --- Improved Ion Engine Makeshift Power Source Light Angular Momentum Engine Medium Storage Unit Machine Analyzer Makeshift Light Armor Plating Tower Shield Multitool SUBCON Basin (Full) Peak State ------------ > --- POWER ------------ Fission Core > --- PROPULSION ------- Spiked Treads Spiked Treads > --- UTILITY ---------- Huge Storage Unit Structural Scanner Sensor Array > --- WEAPON ----------- Riot Gun Barrage Gun > --- INVENTORY -------- Improved Ion Engine Makeshift Power Source Light Angular Momentum Engine Medium Storage Unit Machine Analyzer Makeshift Light Armor Plating Tower Shield Beam Rifle Multitool SUBCON Basin [Rating: 40] Favorites ----------- Power Ion Engine Engine Ion Engine Power Core Fission Core Propulsion Light Treads Treads Light Treads Utility Medium Storage Unit Device Sensor Array Storage Medium Storage Unit Protection Light Armor Plating Weapon Light Assault Rifle Energy Gun Riot Gun Ballistic Gun Light Assault Rifle Special Weapon Mining Laser Build | -11 -10 -10 -10 ------- Run | Yrd Mat Min Sub Slots Evolved 1 | . 1 . . Power . | . . . . Propulsion . | . . . . Utility 1 | . 1 . . Weapon . | . . . . Parts Attached 22 | 7 1 . 14 Power 4 | 1 . . 3 Engine 3 | 1 . . 2 Core 1 | . . . 1 Reactor . | . . . . Propulsion 4 | 2 . . 2 Treads 4 | 2 . . 2 Leg . | . . . . Wheel . | . . . . Hover . | . . . . Flight . | . . . . Utility 6 | 2 1 . 3 Device 3 | . 1 . 2 Storage 2 | 1 . . 1 Processor . | . . . . Hackware . | . . . . Protection 1 | 1 . . . Artifact . | . . . . Weapon 8 | 2 . . 6 Energy Gun 4 | . . . 4 Energy Cannon . | . . . . Ballistic Gun 3 | 2 . . 1 Ballistic Cannon . | . . . . Launcher . | . . . . Special Weapon 1 | . . . 1 Impact Weapon . | . . . . Slashing Weapon . | . . . . Piercing Weapon . | . . . . Special Melee Weapon . | . . . . Unidentified Prototypes . | . . . . Parts Lost 9 | . . . 9 Power . | . . . . Propulsion 2 | . . . 2 Utility 3 | . . . 3 Weapon 4 | . . . 4 Highest Loss Streak 7 | . . . 7 To Critical Strikes 2 | . . . 2 Average Backups 7 | . 3 6 8 Power 2 | . . 1 2 Propulsion . | . . . . Utility 3 | . 2 4 4 Weapon 1 | . 1 1 1 Tool/Special . | . . . . Unused Backups 8 | . . . 8 Power 2 | . . . 2 Propulsion . | . . . . Utility 5 | . . . 5 Weapon . | . . . . Tool/Special 1 | . . . 1 Average Slot Usage (%) 97 | . 87 100 98 Engine 10 | . 12 12 9 Core 1 | . . . 2 Treads 24 | . 25 25 24 Device 17 | . . 12 21 Storage 12 | . 12 12 12 Protection 4 | . 12 12 1 Energy Gun 7 | . . . 11 Ballistic Gun 14 | . 25 25 9 Special Weapon 1 | . . . 2 Peak Build Rating 40 | 7 9 10 40 Average Rating 15 | 5 7 9 18 On Entrance 6 | . 7 9 10 Avg Prop Armor Cover (%) . | . . . . Naked Turns . | . . . . Heaviest Build 98 | 20 20 20 98 Greatest Support 46 | 40 46 46 46 Greatest Overweight (x) 30 | . . . 30 Average Overweight (x) . | . . . . Largest Inventory Capacity 25 | 10 10 10 25 Average Capacity 10 | 8 10 10 11 Most Carried 25 | 3 6 9 25 Average Carried 9 | . 3 6 11 Final Capacity 25 | 10 10 10 25 Final Carried 24 | 2 5 9 24 Class Distribution -------------------- 95% | Hacker-Mutant 4% | Derelict-Mutant Dominant Class ---------------- Hacker-Mutant | -10/Materials Hacker-Mutant | -10/Mines Hacker-Mutant | -10/Subcaves Resources | -11 -10 -10 -10 ----------- Run | Yrd Mat Min Sub Matter Collected 790 | 292 36 56 406 Remotely . | . . . . Salvage Created 1165 | 129 139 212 685 Parts 93 | 9 19 19 46 Haulers Intercepted 1 | . 1 . . Recyclers Shooed 2 | 1 1 . . Parts Field Recycled . | . . . . Retrieved Matter . | . . . . Parts Self-Destructed . | . . . . Prevented . | . . . . Parts Restored . | . . . . Kills | -11 -10 -10 -10 ------- Run | Yrd Mat Min Sub Combat Hostiles Destroyed 30 | . 2 10 18 Guns 29 | . 2 10 17 Cannons 1 | . . . 1 Classes Destroyed 12 | 2 4 2 4 Builder 2 | . 2 . . Tunneler 3 | 3 . . . Hauler 1 | . 1 . . Recycler 1 | 1 . . . Turret 1 | . . . 1 Watcher 1 | . 1 . . Swarmer 13 | . 2 6 5 Grunt 3 | . . 3 . Sentry 1 | . . . 1 Artisan 3 | . . . 3 Subdweller 12 | . . . 12 Assembled 1 | . . 1 . Best Kill Streak 4 | 3 4 2 4 Combat Bots Only 4 | . 2 2 4 Max Kills in Single Turn 1 | 1 1 1 1 Gunslinging . | . . . . Exploded . | . . . . Melee . | . . . . Uniques/NPCs Destroyed . | . . . . Combat | -11 -10 -10 -10 -------- Run | Yrd Mat Min Sub Hostile Shots Fired 234 | . 19 31 184 Missed 74 | . 5 8 61 Hits 160 | . 14 23 123 Projectile 160 | . 14 23 123 Critical Strikes 2 | . . . 2 Damage Taken 1537 | . 67 135 1335 Core 250 | . 10 14 226 Absorbed by Shields . | . . . . Ignored by Resistances 939 | . 47 90 802 Core Remaining (%) 100 | 100 . . . Volleys Fired 157 | 11 18 21 107 Largest 2 | 2 2 2 2 Hottest 165 | 40 40 40 165 Shots Fired 295 | 22 36 42 195 Gun 272 | 22 36 42 172 Cannon . | . . . . Launcher . | . . . . Special 23 | . . . 23 Kinetic 202 | 22 36 42 102 Thermal 46 | . . . 46 Explosive . | . . . . Electromagnetic 47 | . . . 47 Robot Hit Streak 52 | 14 15 17 52 Robot Miss Streak 4 | 1 4 1 2 Penetration Max . | . . . . Secondary Targets 2 | . . 1 1 Max Gunslinging Chain 1 | . . 1 1 Shots Hit Robots 210 | 18 26 33 133 Core Hits 89 | 6 14 19 50 Critical Kills . | . . . . Critical Parts Destroyed . | . . . . Critical Strikes . | . . . . Melee Attacks . | . . . . Impact . | . . . . Slashing . | . . . . Piercing . | . . . . Sneak Attacks . | . . . . Combat Hostiles . | . . . . Follow-up Attacks . | . . . . Damage Inflicted 2527 | 149 217 282 1879 Guns 2328 | 149 217 282 1680 Cannons . | . . . . Explosions 55 | . . . 55 Melee . | . . . . Ramming . | . . . . Kinetic 1540 | 149 217 282 892 Thermal 377 | . . . 377 Explosive . | . . . . Electromagnetic 610 | . . . 610 Impact . | . . . . Slashing . | . . . . Piercing . | . . . . Highest Corruption 1 | . 1 1 1 Average Corruption 1 | . 1 1 1 Corruption Purged . | . . . . Corruption Blocked . | . . . . Effects 27 | . 2 4 21 Message Errors 9 | . 1 2 6 Matter Fused 7 | . . 1 6 Heat Flow Errors 2 | . . . 2 Energy Discharges 3 | . 1 . 2 Data Loss (minor) 4 | . . 1 3 Data Loss (major) 1 | . . . 1 Misfires 1 | . . . 1 Overload Shots . | . . . . Overflow Damage 12 | . . . 12 Projectiles 12 | . . . 12 Explosions . | . . . . Melee . | . . . . Knockbacks . | . . . . Impact . | . . . . Kinetic . | . . . . Secondary . | . . . . Self-Inflicted Damage . | . . . . Shots . | . . . . Rammed . | . . . . Targets Rammed . | . . . . Kicked . | . . . . Crushed . | . . . . Highest Temperature 247 | 12 12 18 247 Average Temperature 16 | 6 6 6 26 Received Heat Transfer 528 | . . 51 477 Siege Activations . | . . . . Martial Activations . | . . . . Shielding Activations . | . . . . Robots Disrupted . | . . . . Combat Hostiles . | . . . . Robots Corrupted . | . . . . Combat Hostiles . | . . . . Parts Fried 2 | . . . 2 Impact Corruptions . | . . . . Robots Melted . | . . . . Combat Hostiles . | . . . . Parts Melted . | . . . . Heat Transferred 782 | . . . 782 Parts Sabotaged . | . . . . Parts Stolen . | . . . . Parts Stripped . | . . . . Power Chain Reactions 1 | . . . 1 Alert | -11 -10 -10 -10 ------- Run | Yrd Mat Min Sub Maximum Alert Level . | . . . . Low Security (%) 100 | 100 100 100 . Level 1 . | . . . . Level 2 . | . . . . Level 3 . | . . . . Level 4 . | . . . . Level 5 . | . . . . High Security . | . . . . Max Security . | . . . . Peak Influence 54 | 10 47 54 . Initial . | . . . . Average 7 | 1 8 8 . Influence Increases 680 | 20 74 271 315 Destroy 0b10 Robot/C 460 | . 40 200 220 Destroy 0b10 Robot/NC 40 | 20 20 . . Destroy Leader 84 | . 14 50 20 Allied During Kill 2 | . . 2 . Disable Machine 4 | . . 4 . Lose Combat Pursuer 90 | . . 15 75 Influence Decreases 680 | 20 74 271 315 Time Decay 620 | 20 74 251 275 Lost Part 20 | . . . 20 Lost Ally 40 | . . 20 20 Squads Dispatched . | . . . . Investigation . | . . . . Extermination . | . . . . Reinforcement . | . . . . Assault . | . . . . Garrison . | . . . . Intercept . | . . . . Searches Triggered . | . . . . Construction Impeded . | . . . . Haulers Reinforced . | . . . . Active Scanning Responses . | . . . . Cargo Convoy Interrupts . | . . . . Stealth | -11 -10 -10 -10 --------- Run | Yrd Mat Min Sub Distress Signals 2 | . 2 . . Communications Jammed . | . . . . Distress Signals . | . . . . Times Spotted 47 | . 6 12 29 Peak Tracking Total 6 | . 3 2 6 Tactical Retreats 3 | . . 1 2 Traps | -11 -10 -10 -10 ------- Run | Yrd Mat Min Sub Traps Triggered 4 | . 3 . 1 Indirectly . | . . . . Trap Hack Attempts . | . . . . Triggered . | . . . . Disarmed . | . . . . Reprogrammed . | . . . . Reused . | . . . . Traps Extracted . | . . . . Installed . | . . . . Triggered . | . . . . Machines | -11 -10 -10 -10 ---------- Run | Yrd Mat Min Sub Machines Disabled 4 | . . 1 3 Max in Single Turn 1 | . . . 1 Machines Repaired . | . . . . Machines Dismantled . | . . . . Machines Sabotaged . | . . . . Overloaded Fab Kills . | . . . . Hacking | -11 -10 -10 -10 --------- Run | Yrd Mat Min Sub Machines Accessed 4 | . . . 4 Terminals . | . . . . Fabricators . | . . . . Repair Stations . | . . . . Recycling Units . | . . . . Scanalyzers . | . . . . Garrison Access . | . . . . Total Hacks 8 | . . . 8 Successful 8 | . . . 8 Failed . | . . . . Catastrophic . | . . . . Database Lockouts . | . . . . Manual . | . . . . Terminals . | . . . . Fabricators . | . . . . Repair Stations . | . . . . Recycling Units . | . . . . Scanalyzers . | . . . . Garrison Access . | . . . . Terminal Hacks 8 | . . . 8 Record 5 | . . . 5 Open Door 1 | . . . 1 Proto ID Catalog 1 | . . . 1 Release Object 1 | . . . 1 Fabricator Hacks . | . . . . Repair Station Hacks . | . . . . Recycling Unit Hacks . | . . . . Scanalyzer . | . . . . Garrison Access Hacks . | . . . . Unauthorized Hacks . | . . . . Terminals . | . . . . Fabricators . | . . . . Repair Stations . | . . . . Recycling Units . | . . . . Scanalyzers . | . . . . Garrison Access . | . . . . Data Cores Recovered . | . . . . Used . | . . . . Hacking Detections . | . . . . Full Trace Events . | . . . . Feedback Events . | . . . . Feedback Blocked . | . . . . Robot Schematics Acquired . | . . . . Robots Built . | . . . . Authchips . | . . . . Time . | . . . . Total Robot Build Rating . | . . . . Part Schematics Acquired . | . . . . Parts Built . | . . . . Authchips . | . . . . Time . | . . . . Total Part Build Rating . | . . . . Part Studies Acquired . | . . . . Parts Repaired . | . . . . Time . | . . . . Parts Recycled . | . . . . Recycled Matter . | . . . . Retrieved Matter . | . . . . Retrieved Components . | . . . . Parts Scanalyzed . | . . . . Part Schematics Acquired . | . . . . Parts Damaged . | . . . . Bothacking | -11 -10 -10 -10 ------------ Run | Yrd Mat Min Sub Used RIF Installer . | . . . . Robots Hacked . | . . . . Non-combat . | . . . . Combat . | . . . . Robot Hacks Applied . | . . . . Relay Couplers Released . | . . . . Fabnet Peak Effective % . | . . . . Robots Rewired . | . . . . Allies Hacked . | . . . . Hacks Repelled . | . . . . Allies | -11 -10 -10 -10 -------- Run | Yrd Mat Min Sub Total Allies 2 | . . 2 . Largest Group 2 | . . 2 1 Highest-Rated Group 49 | . . 49 31 Highest-Rated Ally 31 | . . 31 31 Total Orders . | . . . . Ally Attacks 24 | . . 13 11 Total Damage 351 | . . 125 226 Kills 7 | . . 3 4 Allies Corrupted . | . . . . Allies Melted . | . . . . Intel | -11 -10 -10 -10 ------- Run | Yrd Mat Min Sub Active Infowar (turns) 2151 | . . . 2151 Sensors 2135 | . . . 2135 Structural 1770 | . . . 1770 Robot Analysis Total . | . . . . Derelict Logs Recovered 3 | . . 1 2 Drone Launches . | . . . . Drone Recoveries . | . . . . Exploration | -11 -10 -10 -10 ------------- Run | Yrd Mat Min Sub Turns Passed 4169 | 130 299 972 2768 Spaces Moved 2141 | 63 155 553 1370 Core 14 | 13 . . 1 Treads 2127 | 50 155 553 1369 Legs . | . . . . Wheels . | . . . . Hover . | . . . . Flight . | . . . . Fastest Speed 50 | 50 160 160 160 Average Speed 165 | 137 160 160 169 Slowest Speed 1550 | 160 160 160 1550 Overloaded Moves . | . . . . Propulsion Burnouts . | . . . . Robots Hopped . | . . . . Potential Cave-ins . | . . . . Cave-ins Triggered . | . . . . Exploration Rate (%) 55 | 3 43 99 76 Regions Visited 3 Branch Regions 2 Pre-discovered Areas 2 | . . . 2 Known Exits Taken 3 | 1 1 1 . Unknown Exits Taken . | . . . . Scrap Searched 10 | . . 1 9 Spaces Dug . | . . . . Terrain Destroyed 7 | . . . 7 Melee . | . . . . Projectile . | . . . . AOE 7 | . . . 7 Terrain Rammed . | . . . . Walls Destroyed . | . . . . Machines Disabled . | . . . . Actions | -11 -10 -10 -10 --------- Run | Yrd Mat Min Sub Total 2474 | 89 177 607 1601 Wait 115 | . . 30 85 Move 2138 | 62 154 552 1370 Hop . | . . . . Pick Up 28 | 9 4 4 11 Fast Attach . | . . . . Attach 13 | 7 1 . 5 Detach 1 | . . . 1 Swap 13 | . . . 13 Drop 9 | . . . 9 Fire 157 | 11 18 21 107 Melee . | . . . . Ram . | . . . . Kick . | . . . . Crush . | . . . . Escape Stasis . | . . . . Rewire . | . . . . Trap . | . . . . Miscellaneous . | . . . . Route ------- -11/Scrapyard -10/Materials (discovered 3 exits: *Mat / *Min x2) -10/Mines (discovered 4 exits: *Mat x2 / *Exi / *Sub) -10/Subcaves (discovered 2 exits: *Mat / *Rec) History --------- Turn | Location | Event 5 | -11/Scrapyard | Identified exit to Materials 5 | -11/Scrapyard | Discovered exit to Materials (range 15) 131 | -11/Scrapyard | Entered Materials 131 | -10/Materials | Evolved 1 slot: Utility x1 133 | -10/Materials | Identified exit to Mines 133 | -10/Materials | Discovered exit to Mines (range 13) 303 | -10/Materials | Build established: Hacker-Mutant 308 | -10/Materials | Identified exit to Materials 308 | -10/Materials | Discovered exit to Materials (range 15) 391 | -10/Materials | Discovered exit to Mines (range 11) 430 | -10/Materials | Entered Mines 616 | -10/Mines | Deemed a non-threat by the Exiles lab entrance 616 | -10/Mines | Identified exit to Exiles 616 | -10/Mines | Discovered exit to Exiles (range 5) 671 | -10/Mines | Assembled infested the area 676 | -10/Mines | Assisted by a Guerilla fighting off Assembled 863 | -10/Mines | Found DCF Scrap (14 items) 1055 | -10/Mines | Discovered exit to Materials (range 6) 1096 | -10/Mines | Discovered exit to Materials (range 10) 1182 | -10/Mines | Found a hidden stash of uninstalled traps 1316 | -10/Mines | A weapon hastily lodged in a ceiling crevice suddenly fell to the ground 1386 | -10/Mines | Identified exit to Subcaves 1386 | -10/Mines | Discovered exit to Subcaves (range 6) 1402 | -10/Mines | Entered Subcaves 1402 | -10/Subcaves | Accompanied by 1 ally 1403 | -10/Subcaves | Approached by a straggling Scientist 1407 | -10/Subcaves | Led the pair of lost Derelicts to an unsafe place 1428 | -10/Subcaves | Visited Clippyterm 1433 | -10/Subcaves | Learned location of Section 7 (-2) 1492 | -10/Subcaves | Learned Materials trap positions 1502 | -10/Subcaves | Shifting Twisted Machinery released Sub. Beam Cannon 1574 | -10/Subcaves | Shifting Twisted Machinery released Sub. Optics 1765 | -10/Subcaves | Identified exit to Recycling 1765 | -10/Subcaves | Discovered exit to Recycling (range 11) 1963 | -10/Subcaves | Visited 4L-MR0's lab 2010 | -10/Subcaves | Found Tower Shield 2124 | -10/Subcaves | Identified exit to Materials 2124 | -10/Subcaves | Discovered exit to Materials (range 6) 2240 | -10/Subcaves | Shifting Twisted Machinery released Riot Gun 2334 | -10/Subcaves | Shifting Twisted Machinery released Piercing Trap 3716 | -10/Subcaves | Learned location of Storage (-7) 3803 | -10/Subcaves | Core integrity fell below 50% 3928 | -10/Subcaves | Found SUBCON Basin 4151 | -10/Subcaves | Core integrity fell below 20% 4170 | -10/Subcaves | Destroyed by 2U-KK9(R) with Subdweller Laser Last Messages --------------- happening. 03928_ Acquired SUBCON Basin. 04048_ System corrupted: Matter fused (-7). 04064_ 7WEAGRB